[Event "*** Titled Tuesday 3|2 Blitz (Late)"]
[Site "Chess.com"]
[Date "2016.12.06"]
[Round "6"]
[White "Hikaru"]
[Black "ShimanovAlex"]
[Result "1/2-1/2"]
[WhiteElo "2893"]
[BlackElo "2669"]
[TimeControl "180+2"]
[EndTime "18:13:06 PST"]
[Termination "Game drawn - insufficient material"]

1. d4 {[%clk 0:03:02]} 1... Nf6 {[%clk 0:02:59.7]} 2. Bf4 {[%clk 0:03:02.9]}
2... d5 {[%clk 0:02:59.9]} 3. e3 {[%clk 0:03:04.1]} 3... c5 {[%clk 0:03:00.7]}
4. c3 {[%clk 0:03:05]} 4... Nc6 {[%clk 0:03:01.5]} 5. Nd2 {[%clk 0:03:05.8]}
5... Bg4 {[%clk 0:03:01.7]} 6. Ngf3 {[%clk 0:03:04.4]} 6... e6 {[%clk
0:03:02.1]} 7. Qb3 {[%clk 0:03:05.3]} 7... Qc8 {[%clk 0:03:02.9]} 8. Ne5 {[%clk
0:03:04.6]} 8... Nxe5 {[%clk 0:03:02.7]} 9. Bxe5 {[%clk 0:03:05.1]} 9... c4
{[%clk 0:03:02.6]} 10. Qb5+ {[%clk 0:02:53.7]} 10... Qd7 {[%clk 0:03:00.2]} 11.
Qxd7+ {[%clk 0:02:38.6]} 11... Nxd7 {[%clk 0:03:00.9]} 12. Bg3 {[%clk
0:02:40.2]} 12... b5 {[%clk 0:02:59]} 13. f3 {[%clk 0:02:37.4]} 13... Bh5 {[%clk
0:02:58.9]} 14. e4 {[%clk 0:02:36.4]} 14... Nb6 {[%clk 0:02:58.7]} 15. Be2
{[%clk 0:02:35.1]} 15... Be7 {[%clk 0:02:58.1]} 16. Bd1 {[%clk 0:02:32.2]} 16...
Kd7 {[%clk 0:02:54.6]} 17. a4 {[%clk 0:02:26.6]} 17... a6 {[%clk 0:02:46.4]} 18.
Bc2 {[%clk 0:02:17.3]} 18... Bg6 {[%clk 0:02:41.2]} 19. Ke2 {[%clk 0:02:16.2]}
19... Kc6 {[%clk 0:02:35.5]} 20. b3 {[%clk 0:02:12.5]} 20... Bg5 {[%clk
0:02:15.5]} 21. Rhb1 {[%clk 0:01:37.7]} 21... Bxd2 {[%clk 0:02:07.4]} 22. Kxd2
{[%clk 0:01:38.8]} 22... cxb3 {[%clk 0:02:07.4]} 23. Rxb3 {[%clk 0:01:35.5]}
23... Nxa4 {[%clk 0:01:53.6]} 24. Rxa4 {[%clk 0:01:29]} 24... bxa4 {[%clk
0:01:52.3]} 25. Rb4 {[%clk 0:01:30.5]} 25... Kd7 {[%clk 0:01:28.4]} 26. Bxa4+
{[%clk 0:01:31.1]} 26... Ke7 {[%clk 0:01:29.3]} 27. Rb7+ {[%clk 0:01:20.1]}
27... Kf8 {[%clk 0:01:26.6]} 28. Bc6 {[%clk 0:01:18.5]} 28... dxe4 {[%clk
0:01:12.9]} 29. fxe4 {[%clk 0:01:19.4]} 29... h5 {[%clk 0:01:07.9]} 30. Rd7
{[%clk 0:01:09.9]} 30... Rc8 {[%clk 0:01:01.9]} 31. Bb7 {[%clk 0:01:11.1]} 31...
Re8 {[%clk 0:01:03]} 32. c4 {[%clk 0:01:11.8]} 32... Kg8 {[%clk 0:00:59.7]} 33.
c5 {[%clk 0:01:12.2]} 33... Kh7 {[%clk 0:01:00.1]} 34. Ke3 {[%clk 0:01:13.1]}
34... a5 {[%clk 0:00:56.6]} 35. c6 {[%clk 0:01:14.3]} 35... a4 {[%clk
0:00:55.3]} 36. Bd6 {[%clk 0:01:15.5]} 36... f5 {[%clk 0:00:36.1]} 37. Re7
{[%clk 0:00:31.9]} 37... fxe4 {[%clk 0:00:18.1]} 38. c7 {[%clk 0:00:32]} 38...
Ref8 {[%clk 0:00:15.7]} 39. Rd7 {[%clk 0:00:24.7]} 39... Re8 {[%clk 0:00:13.4]}
40. Be7 {[%clk 0:00:26]} 40... e5 {[%clk 0:00:13.1]} 41. Bd8 {[%clk 0:00:24]}
41... exd4+ {[%clk 0:00:14.3]} 42. Rxd4 {[%clk 0:00:25.9]} 42... Bf5 {[%clk
0:00:15.3]} 43. Rxa4 {[%clk 0:00:27.4]} 43... Rxd8 {[%clk 0:00:15.3]} 44. cxd8=Q
{[%clk 0:00:29]} 44... Rxd8 {[%clk 0:00:16.7]} 45. Ra5 {[%clk 0:00:30.9]} 45...
Bg6 {[%clk 0:00:17.5]} 46. Ra3 {[%clk 0:00:32.1]} 46... Rd3+ {[%clk 0:00:17.9]}
47. Rxd3 {[%clk 0:00:33.3]} 47... exd3 {[%clk 0:00:19.8]} 48. Ba6 {[%clk
0:00:34.8]} 48... Kh6 {[%clk 0:00:21]} 49. h4 {[%clk 0:00:35.2]} 49... Bf5
{[%clk 0:00:21]} 50. g3 {[%clk 0:00:35.7]} 50... g5 {[%clk 0:00:19.2]} 51. Bb5
{[%clk 0:00:36.7]} 51... Kg6 {[%clk 0:00:19.4]} 52. Be8+ {[%clk 0:00:37.6]}
52... Kh6 {[%clk 0:00:20.3]} 53. Bf7 {[%clk 0:00:38.9]} 53... gxh4 {[%clk
0:00:21.2]} 54. gxh4 {[%clk 0:00:40.8]} 54... Bg6 {[%clk 0:00:22.5]} 55. Bd5
{[%clk 0:00:41.3]} 55... Kg7 {[%clk 0:00:23.9]} 56. Bb7 {[%clk 0:00:39.5]} 56...
Kf6 {[%clk 0:00:24.6]} 57. Ba6 {[%clk 0:00:41.1]} 57... Ke5 {[%clk 0:00:25.6]}
58. Bc4 {[%clk 0:00:41.2]} 58... Kf6 {[%clk 0:00:23.6]} 59. Bb3 {[%clk
0:00:39.4]} 59... Ke5 {[%clk 0:00:24.6]} 60. Bd1 {[%clk 0:00:40.2]} 60... d2
{[%clk 0:00:24.9]} 61. Kxd2 {[%clk 0:00:15.1]} 61... Kf4 {[%clk 0:00:25.7]} 62.
Ke1 {[%clk 0:00:16.6]} 62... Kg3 {[%clk 0:00:26.7]} 63. Kf1 {[%clk 0:00:18.3]}
63... Kxh4 {[%clk 0:00:27.7]} 64. Kg2 {[%clk 0:00:20]} 64... Bf5 {[%clk
0:00:27.2]} 65. Bxh5 {[%clk 0:00:02.3]} 1/2-1/2

[Event "*** Titled Tuesday 3|2 Blitz (Late)"]
[Site "Chess.com"]
[Date "2016.12.06"]
[Round "6"]
[White "LawrenceTrent"]
[Black "Noukii"]
[Result "1-0"]
[WhiteElo "2454"]
[BlackElo "2633"]
[TimeControl "180+2"]
[EndTime "18:13:37 PST"]
[Termination "LawrenceTrent won by checkmate"]

1. d4 {[%clk 0:02:56.8]} 1... d5 {[%clk 0:03:00.8]} 2. Bf4 {[%clk 0:02:56.6]}
2... Nf6 {[%clk 0:03:02.2]} 3. e3 {[%clk 0:02:57.7]} 3... c5 {[%clk 0:03:03.8]}
4. c3 {[%clk 0:02:58.9]} 4... Nc6 {[%clk 0:03:05.5]} 5. Nd2 {[%clk 0:03:00.3]}
5... e6 {[%clk 0:03:06.9]} 6. Ngf3 {[%clk 0:03:00.4]} 6... Bd6 {[%clk
0:03:08.4]} 7. Bg3 {[%clk 0:03:01.3]} 7... O-O {[%clk 0:03:09.8]} 8. Bb5 {[%clk
0:03:02.2]} 8... Ne7 {[%clk 0:03:09.8]} 9. Bd3 {[%clk 0:02:59.1]} 9... b6 {[%clk
0:03:10.1]} 10. Ne5 {[%clk 0:02:57]} 10... Bb7 {[%clk 0:03:10]} 11. O-O {[%clk
0:02:53.5]} 11... Nf5 {[%clk 0:03:10.9]} 12. Bxf5 {[%clk 0:02:52.2]} 12... exf5
{[%clk 0:03:12]} 13. Bh4 {[%clk 0:02:51.5]} 13... Be7 {[%clk 0:03:12.1]} 14. Qa4
{[%clk 0:02:44.7]} 14... Ne4 {[%clk 0:02:56.1]} 15. Bxe7 {[%clk 0:02:42.5]}
15... Qxe7 {[%clk 0:02:58]} 16. Ndf3 {[%clk 0:02:11]} 16... f6 {[%clk
0:02:41.3]} 17. Nd3 {[%clk 0:02:11.4]} 17... g5 {[%clk 0:02:41.6]} 18. Qd1
{[%clk 0:02:01.3]} 18... a5 {[%clk 0:02:32.3]} 19. Re1 {[%clk 0:01:57.6]} 19...
c4 {[%clk 0:02:29]} 20. Nc1 {[%clk 0:01:56.8]} 20... b5 {[%clk 0:02:30.6]} 21.
Nd2 {[%clk 0:01:56.8]} 21... b4 {[%clk 0:02:26.5]} 22. Ne2 {[%clk 0:01:48.2]}
22... Rfe8 {[%clk 0:02:18.3]} 23. Nf1 {[%clk 0:01:48.7]} 23... Bc6 {[%clk
0:02:11.6]} 24. f3 {[%clk 0:01:28.6]} 24... Nd6 {[%clk 0:02:11.1]} 25. Neg3
{[%clk 0:01:27.2]} 25... Rab8 {[%clk 0:02:07.3]} 26. Qd2 {[%clk 0:01:24.7]}
26... Qf7 {[%clk 0:01:50.9]} 27. Rac1 {[%clk 0:01:08.8]} 27... h5 {[%clk
0:01:50.1]} 28. h4 {[%clk 0:01:09.1]} 28... Qg6 {[%clk 0:01:43.9]} 29. Ne2
{[%clk 0:01:09.2]} 29... Kh7 {[%clk 0:01:40]} 30. Kf2 {[%clk 0:01:09.5]} 30...
Rb7 {[%clk 0:01:39.3]} 31. Nfg3 {[%clk 0:01:09.2]} 31... Kg7 {[%clk 0:01:35.7]}
32. Rh1 {[%clk 0:01:08.8]} 32... Rh8 {[%clk 0:01:34.6]} 33. Kg1 {[%clk
0:00:43.5]} 33... b3 {[%clk 0:01:33.2]} 34. a3 {[%clk 0:00:43.9]} 34... Re7
{[%clk 0:01:34.7]} 35. Re1 {[%clk 0:00:42.3]} 35... Be8 {[%clk 0:01:36]} 36. Kf2
{[%clk 0:00:43.1]} 36... Qh6 {[%clk 0:01:36.1]} 37. Ng1 {[%clk 0:00:38.6]} 37...
Bg6 {[%clk 0:01:33.2]} 38. Nh3 {[%clk 0:00:36.5]} 38... Rhe8 {[%clk 0:01:33.9]}
39. Nf1 {[%clk 0:00:36.3]} 39... f4 {[%clk 0:01:28.8]} 40. Re2 {[%clk
0:00:28.3]} 40... Bd3 {[%clk 0:01:29]} 41. Re1 {[%clk 0:00:26.9]} 41... Qg6
{[%clk 0:01:25.5]} 42. hxg5 {[%clk 0:00:24.5]} 42... fxg5 {[%clk 0:01:26.5]} 43.
Qc1 {[%clk 0:00:24.9]} 43... Nf5 {[%clk 0:01:18]} 44. e4 {[%clk 0:00:16.5]}
44... dxe4 {[%clk 0:01:19]} 45. fxe4 {[%clk 0:00:17.4]} 45... Rxe4 {[%clk
0:01:19.8]} 46. Rxe4 {[%clk 0:00:18.2]} 46... Rxe4 {[%clk 0:01:21.7]} 47. Nd2
{[%clk 0:00:19.6]} 47... Re2+ {[%clk 0:01:23.2]} 48. Kg1 {[%clk 0:00:20.6]}
48... Ne3 {[%clk 0:01:19.5]} 49. Rh2 {[%clk 0:00:21.6]} 49... Nc2 {[%clk
0:01:07.9]} 50. Nf3 {[%clk 0:00:20.8]} 50... Be4 {[%clk 0:01:06.7]} 51. Nhxg5
{[%clk 0:00:21.2]} 51... Bxf3 {[%clk 0:01:02.9]} 52. Nxf3 {[%clk 0:00:21.9]}
52... Qg3 {[%clk 0:01:03.3]} 53. Qf1 {[%clk 0:00:17.8]} 53... Re6 {[%clk
0:00:59.4]} 54. Qxc4 {[%clk 0:00:16.5]} 54... Re1+ {[%clk 0:00:42.3]} 55. Nxe1
{[%clk 0:00:17.2]} 55... Qxe1+ {[%clk 0:00:44.2]} 56. Qf1 {[%clk 0:00:17.7]}
56... Qe3+ {[%clk 0:00:45.6]} 57. Kh1 {[%clk 0:00:19]} 57... Nxa3 {[%clk
0:00:45.2]} 58. Rxh5 {[%clk 0:00:18]} 58... Nc2 {[%clk 0:00:45.6]} 59. Qa6
{[%clk 0:00:18.6]} 59... Qe1+ {[%clk 0:00:45.7]} 60. Kh2 {[%clk 0:00:20]} 60...
Qg3+ {[%clk 0:00:47.3]} 61. Kg1 {[%clk 0:00:21.5]} 61... Qe1+ {[%clk 0:00:48.9]}
62. Qf1 {[%clk 0:00:23]} 62... Qe3+ {[%clk 0:00:47.7]} 63. Kh1 {[%clk
0:00:23.8]} 63... a4 {[%clk 0:00:49.3]} 64. d5 {[%clk 0:00:24.4]} 64... Qe1
{[%clk 0:00:46.5]} 65. Qxe1 {[%clk 0:00:24.8]} 65... Nxe1 {[%clk 0:00:48.4]} 66.
d6 {[%clk 0:00:25.8]} 66... a3 {[%clk 0:00:49.8]} 67. d7 {[%clk 0:00:25.7]}
67... axb2 {[%clk 0:00:48.7]} 68. d8=Q {[%clk 0:00:26.5]} 68... b1=Q {[%clk
0:00:50.6]} 69. Qe7+ {[%clk 0:00:26.5]} 69... Kg8 {[%clk 0:00:50.2]} 70. Rg5+
{[%clk 0:00:26.7]} 70... Kh8 {[%clk 0:00:51.8]} 71. Qg7# {[%clk 0:00:27.4]} 1-0

[Event "*** Titled Tuesday 3|2 Blitz (Late)"]
[Site "Chess.com"]
[Date "2016.12.06"]
[Round "6"]
[White "platy3"]
[Black "tango_argentino"]
[Result "1-0"]
[WhiteElo "2701"]
[BlackElo "2374"]
[TimeControl "180+2"]
[EndTime "18:14:29 PST"]
[Termination "platy3 won on time"]

1. e4 {[%clk 0:03:00]} 1... e6 {[%clk 0:02:59]} 2. d4 {[%clk 0:03:00.6]} 2... d5
{[%clk 0:03:00]} 3. Nc3 {[%clk 0:03:01.9]} 3... Nf6 {[%clk 0:02:59.9]} 4. e5
{[%clk 0:03:02.9]} 4... Nfd7 {[%clk 0:03:01.2]} 5. f4 {[%clk 0:03:04.5]} 5... c5
{[%clk 0:03:02.6]} 6. Nf3 {[%clk 0:03:06]} 6... Nc6 {[%clk 0:03:03.9]} 7. Be3
{[%clk 0:03:07.4]} 7... Be7 {[%clk 0:03:05.2]} 8. a3 {[%clk 0:03:07.8]} 8... b6
{[%clk 0:03:05.5]} 9. Bd3 {[%clk 0:03:07]} 9... cxd4 {[%clk 0:02:57.2]} 10. Nxd4
{[%clk 0:03:07.2]} 10... Nxd4 {[%clk 0:02:56.7]} 11. Bxd4 {[%clk 0:03:08.2]}
11... Bc5 {[%clk 0:02:56.2]} 12. Ne2 {[%clk 0:02:56.9]} 12... a5 {[%clk
0:02:48.7]} 13. O-O {[%clk 0:02:55.5]} 13... Ba6 {[%clk 0:02:47.2]} 14. b4
{[%clk 0:02:33.5]} 14... Bxd3 {[%clk 0:02:30.7]} 15. Qxd3 {[%clk 0:02:31.4]}
15... axb4 {[%clk 0:02:31.9]} 16. axb4 {[%clk 0:02:31.5]} 16... Bxb4 {[%clk
0:02:32.6]} 17. Qb5 {[%clk 0:02:13.2]} 17... Bc5 {[%clk 0:02:22.2]} 18. Bxc5
{[%clk 0:02:06.2]} 18... bxc5 {[%clk 0:02:20.3]} 19. Rxa8 {[%clk 0:02:04.1]}
19... Qxa8 {[%clk 0:02:20.5]} 20. Ng3 {[%clk 0:01:54.3]} 20... g6 {[%clk
0:02:14.1]} 21. c4 {[%clk 0:01:34.8]} 21... d4 {[%clk 0:02:12.9]} 22. Re1 {[%clk
0:01:35.3]} 22... Ke7 {[%clk 0:01:48.1]} 23. Qb2 {[%clk 0:01:35.9]} 23... Rb8
{[%clk 0:01:46.4]} 24. Qf2 {[%clk 0:01:36.7]} 24... Qa3 {[%clk 0:01:45.5]} 25.
Ne4 {[%clk 0:01:36.6]} 25... Kf8 {[%clk 0:01:37.3]} 26. Qh4 {[%clk 0:01:34.2]}
26... h5 {[%clk 0:01:38.4]} 27. Qg5 {[%clk 0:01:15.9]} 27... d3 {[%clk
0:01:38.7]} 28. Qh6+ {[%clk 0:01:10.1]} 28... Ke7 {[%clk 0:01:38.7]} 29. Qg5+
{[%clk 0:01:10.5]} 29... Kf8 {[%clk 0:01:38.9]} 30. f5 {[%clk 0:01:04.7]} 30...
exf5 {[%clk 0:01:26]} 31. e6 {[%clk 0:00:48.4]} 31... fxe4 {[%clk 0:01:04.9]}
32. Qf4 {[%clk 0:00:49.5]} 32... f5 {[%clk 0:00:57.5]} 33. Qd6+ {[%clk
0:00:44.7]} 33... Kg7 {[%clk 0:00:51.5]} 34. exd7 {[%clk 0:00:44.2]} 34... Qa5
{[%clk 0:00:46.3]} 35. Rf1 {[%clk 0:00:36.4]} 35... Qd8 {[%clk 0:00:46.2]} 36.
Qe5+ {[%clk 0:00:24]} 36... Kh7 {[%clk 0:00:45.8]} 37. Ra1 {[%clk 0:00:19]}
37... d2 {[%clk 0:00:44]} 38. Rd1 {[%clk 0:00:18.3]} 38... Qxd7 {[%clk
0:00:41.5]} 39. Qxb8 {[%clk 0:00:17]} 39... e3 {[%clk 0:00:42.3]} 40. Qe5 {[%clk
0:00:13.7]} 40... f4 {[%clk 0:00:38.4]} 41. g3 {[%clk 0:00:06.7]} 41... Qg4
{[%clk 0:00:31.4]} 42. Qe7+ {[%clk 0:00:05.8]} 42... Kg8 {[%clk 0:00:29.8]} 43.
Qe8+ {[%clk 0:00:06.2]} 43... Kg7 {[%clk 0:00:30.1]} 44. Qe7+ {[%clk 0:00:07.2]}
44... Kg8 {[%clk 0:00:29.9]} 45. Qd8+ {[%clk 0:00:07.7]} 45... Kh7 {[%clk
0:00:30]} 46. Qc7+ {[%clk 0:00:08.2]} 46... Kg8 {[%clk 0:00:29.5]} 47. Qd8+
{[%clk 0:00:07.4]} 47... Kh7 {[%clk 0:00:30.7]} 48. Ra1 {[%clk 0:00:07.5]} 48...
h4 {[%clk 0:00:08.1]} 49. Ra7+ {[%clk 0:00:08.1]} 49... Kh6 {[%clk 0:00:09.6]}
50. Qh8+ {[%clk 0:00:09.1]} 50... Kg5 {[%clk 0:00:10.8]} 51. Qd8+ {[%clk
0:00:09.1]} 51... Kh6 {[%clk 0:00:10.9]} 52. Qh8+ {[%clk 0:00:10.3]} 52... Kg5
{[%clk 0:00:12.3]} 53. Qe5+ {[%clk 0:00:10.5]} 53... Kh6 {[%clk 0:00:12.4]} 54.
Qg7+ {[%clk 0:00:08.3]} 54... Kg5 {[%clk 0:00:11.7]} 55. Qe7+ {[%clk 0:00:08.9]}
55... Kh6 {[%clk 0:00:13]} 56. Qf8+ {[%clk 0:00:09.3]} 56... Kg5 {[%clk
0:00:13.3]} 57. Qd8+ {[%clk 0:00:10.1]} 57... Kh6 {[%clk 0:00:13.4]} 58. Qf8+
{[%clk 0:00:07.1]} 58... Kg5 {[%clk 0:00:14.1]} 59. Qe7+ {[%clk 0:00:07.9]}
59... Kh6 {[%clk 0:00:15.1]} 60. Qg7+ {[%clk 0:00:08]} 60... Kg5 {[%clk
0:00:16.2]} 61. Qe7+ {[%clk 0:00:09]} 61... Kh6 {[%clk 0:00:17.4]} 62. Qf8+
{[%clk 0:00:09.2]} 62... Kg5 {[%clk 0:00:18.4]} 63. Qd8+ {[%clk 0:00:05.5]}
63... Kh6 {[%clk 0:00:15.2]} 64. Qh8+ {[%clk 0:00:06.4]} 64... Kg5 {[%clk
0:00:15.7]} 65. Qe5+ {[%clk 0:00:07.4]} 65... Qf5 {[%clk 0:00:11.3]} 66. gxf4+
{[%clk 0:00:06]} 66... Kg4 {[%clk 0:00:12.4]} 67. h3+ {[%clk 0:00:04.6]} 67...
Kf3 {[%clk 0:00:11.1]} 68. Qa1 {[%clk 0:00:04.1]} 68... Qxf4 {[%clk 0:00:06.3]}
69. Qf1+ {[%clk 0:00:04.5]} 69... Ke4 {[%clk 0:00:03.3]} 70. Re7+ {[%clk
0:00:05.7]} 1-0

[Event "*** Titled Tuesday 3|2 Blitz (Late)"]
[Site "Chess.com"]
[Date "2016.12.06"]
[Round "7"]
[White "HarutyunianTigranK"]
[Black "Buffy7"]
[Result "1-0"]
[WhiteElo "2644"]
[BlackElo "2470"]
[TimeControl "180+2"]
[EndTime "18:20:24 PST"]
[Termination "HarutyunianTigranK won by resignation"]

1. c4 {[%clk 0:03:02]} 1... c6 {[%clk 0:03:01]} 2. Nf3 {[%clk 0:03:00.2]} 2...
d5 {[%clk 0:03:02.1]} 3. d4 {[%clk 0:03:01.8]} 3... Nf6 {[%clk 0:03:03.2]} 4.
Qc2 {[%clk 0:03:03]} 4... dxc4 {[%clk 0:02:48.5]} 5. Qxc4 {[%clk 0:03:03.3]}
5... Bg4 {[%clk 0:02:50.1]} 6. Nc3 {[%clk 0:03:02.3]} 6... Nbd7 {[%clk
0:02:49.6]} 7. e4 {[%clk 0:03:03.2]} 7... e5 {[%clk 0:02:49]} 8. dxe5 {[%clk
0:02:41.8]} 8... Bxf3 {[%clk 0:02:48]} 9. exf6 {[%clk 0:02:42.8]} 9... Ne5
{[%clk 0:02:21.9]} 10. Qb3 {[%clk 0:02:42.9]} 10... Bc5 {[%clk 0:02:11.8]} 11.
fxg7 {[%clk 0:02:32.9]} 11... Rg8 {[%clk 0:02:12.4]} 12. Bf4 {[%clk 0:02:10.1]}
12... Bxg2 {[%clk 0:01:42.7]} 13. Bxe5 {[%clk 0:01:52.1]} 13... Bxh1 {[%clk
0:01:39.6]} 14. Qxb7 {[%clk 0:01:52.5]} 1-0

[Event "*** Titled Tuesday 3|2 Blitz (Late)"]
[Site "Chess.com"]
[Date "2016.12.06"]
[Round "7"]
[White "dretch"]
[Black "FranklinAPalomo"]
[Result "1-0"]
[WhiteElo "2590"]
[BlackElo "2404"]
[TimeControl "180+2"]
[EndTime "18:21:50 PST"]
[Termination "dretch won by resignation"]

1. d4 {[%clk 0:03:02]} 1... c5 {[%clk 0:03:02]} 2. d5 {[%clk 0:03:03.2]} 2...
Nf6 {[%clk 0:02:59.9]} 3. c4 {[%clk 0:03:04.6]} 3... d6 {[%clk 0:03:01.3]} 4.
Nc3 {[%clk 0:03:06.1]} 4... g6 {[%clk 0:03:03.2]} 5. e4 {[%clk 0:03:07.7]} 5...
Bg7 {[%clk 0:03:05.1]} 6. Nf3 {[%clk 0:03:09.4]} 6... O-O {[%clk 0:03:05.6]} 7.
h3 {[%clk 0:03:10.9]} 7... Nbd7 {[%clk 0:03:05.4]} 8. Bd3 {[%clk 0:03:11.6]}
8... a6 {[%clk 0:03:07.3]} 9. O-O {[%clk 0:03:12.3]} 9... Ne8 {[%clk 0:03:09.2]}
10. Bg5 {[%clk 0:03:09.3]} 10... Rb8 {[%clk 0:03:11.1]} 11. Qd2 {[%clk 0:03:10]}
11... Nc7 {[%clk 0:03:12.5]} 12. a4 {[%clk 0:03:10.4]} 12... f6 {[%clk
0:03:08.3]} 13. Be3 {[%clk 0:03:10.2]} 13... Rf7 {[%clk 0:03:10.2]} 14. Rfe1
{[%clk 0:03:06.5]} 14... Ne5 {[%clk 0:03:02]} 15. Nxe5 {[%clk 0:03:06.4]} 15...
fxe5 {[%clk 0:03:03.9]} 16. a5 {[%clk 0:03:05.6]} 16... Bd7 {[%clk 0:03:01.3]}
17. Reb1 {[%clk 0:03:05.3]} 17... b5 {[%clk 0:02:58.8]} 18. axb6 {[%clk
0:03:06]} 18... Rxb6 {[%clk 0:02:58.9]} 19. Na2 {[%clk 0:02:56.5]} 19... Rb8
{[%clk 0:02:25.2]} 20. b4 {[%clk 0:02:57.3]} 20... cxb4 {[%clk 0:02:26.3]} 21.
Nxb4 {[%clk 0:02:58.7]} 21... Qc8 {[%clk 0:02:19.7]} 22. Qa2 {[%clk 0:02:55.6]}
22... Ra8 {[%clk 0:02:04]} 23. Bf1 {[%clk 0:02:49.6]} 23... a5 {[%clk
0:02:02.4]} 24. Nc6 {[%clk 0:02:49.5]} 24... Bxc6 {[%clk 0:02:03.2]} 25. dxc6
{[%clk 0:02:51.2]} 25... Qe8 {[%clk 0:02:04.6]} 26. c5 {[%clk 0:02:41.9]} 26...
Qxc6 {[%clk 0:02:04.2]} 27. Bc4 {[%clk 0:02:39.7]} 27... e6 {[%clk 0:02:02.4]}
28. cxd6 {[%clk 0:02:36.8]} 28... Qxd6 {[%clk 0:02:02.8]} 29. Rb6 {[%clk
0:02:37.9]} 29... Qd7 {[%clk 0:02:02]} 30. Rc1 {[%clk 0:02:32.6]} 30... Re8
{[%clk 0:01:55.8]} 31. Rb7 {[%clk 0:02:30.7]} 31... Qc6 {[%clk 0:01:50.5]} 32.
Qb1 {[%clk 0:02:27.7]} 32... Rc8 {[%clk 0:01:34.6]} 33. Ba2 {[%clk 0:02:26]}
33... Qe8 {[%clk 0:01:33.9]} 34. Qb6 {[%clk 0:02:22]} 34... Na8 {[%clk 0:01:29]}
35. Qxe6 {[%clk 0:02:14.4]} 1-0

[Event "*** Titled Tuesday 3|2 Blitz (Late)"]
[Site "Chess.com"]
[Date "2016.12.06"]
[Round "7"]
[White "Quiet_Desperation"]
[Black "jposthuma"]
[Result "0-1"]
[WhiteElo "2290"]
[BlackElo "2221"]
[TimeControl "180+2"]
[EndTime "18:22:05 PST"]
[Termination "jposthuma won by resignation"]

1. e4 {[%clk 0:03:01.9]} 1... c6 {[%clk 0:03:00.1]} 2. d4 {[%clk 0:03:01.5]}
2... d5 {[%clk 0:03:02]} 3. exd5 {[%clk 0:03:02.5]} 3... cxd5 {[%clk 0:03:03.9]}
4. Bd3 {[%clk 0:03:03.3]} 4... Nc6 {[%clk 0:03:04.4]} 5. Nf3 {[%clk 0:03:03.4]}
5... Qc7 {[%clk 0:03:03.7]} 6. O-O {[%clk 0:03:02.4]} 6... Bg4 {[%clk
0:03:04.4]} 7. c3 {[%clk 0:03:02.9]} 7... e6 {[%clk 0:03:05.7]} 8. Re1 {[%clk
0:02:58.5]} 8... Bd6 {[%clk 0:03:05.7]} 9. h3 {[%clk 0:02:58.2]} 9... Bh5 {[%clk
0:03:06.6]} 10. Nbd2 {[%clk 0:02:59.4]} 10... Nge7 {[%clk 0:03:06.9]} 11. a4
{[%clk 0:02:56.9]} 11... Bg6 {[%clk 0:03:06.7]} 12. Nf1 {[%clk 0:02:55.5]} 12...
Bxd3 {[%clk 0:03:07.1]} 13. Qxd3 {[%clk 0:02:56.5]} 13... Ng6 {[%clk 0:03:09]}
14. Ne3 {[%clk 0:02:48.4]} 14... Nf4 {[%clk 0:03:08.3]} 15. Qf1 {[%clk
0:02:47.5]} 15... O-O {[%clk 0:03:05.9]} 16. Ng4 {[%clk 0:02:41.8]} 16... Na5
{[%clk 0:02:59.1]} 17. Nfe5 {[%clk 0:02:33.5]} 17... Ng6 {[%clk 0:02:59.7]} 18.
Nxg6 {[%clk 0:02:33.6]} 18... hxg6 {[%clk 0:03:00.8]} 19. Rb1 {[%clk 0:02:23.3]}
19... Nb3 {[%clk 0:02:55.6]} 20. Be3 {[%clk 0:02:23.3]} 20... Qc6 {[%clk
0:02:43.8]} 21. h4 {[%clk 0:02:12.9]} 21... Qxa4 {[%clk 0:02:43.2]} 22. Bg5
{[%clk 0:02:09.4]} 22... Qd7 {[%clk 0:02:30.2]} 23. Qe2 {[%clk 0:02:03.4]} 23...
Be7 {[%clk 0:02:27.7]} 24. Ne5 {[%clk 0:01:51.6]} 24... Qd8 {[%clk 0:02:28.4]}
25. Bxe7 {[%clk 0:01:47.4]} 25... Qxe7 {[%clk 0:02:30.3]} 26. h5 {[%clk
0:01:46.5]} 26... gxh5 {[%clk 0:02:27.3]} 27. Qxh5 {[%clk 0:01:46.8]} 27... Nd2
{[%clk 0:02:24.9]} 28. Re3 {[%clk 0:01:37.5]} 28... Qf6 {[%clk 0:01:12.2]} 29.
Rd1 {[%clk 0:01:35.7]} 29... Ne4 {[%clk 0:01:09.9]} 30. Nd7 {[%clk 0:01:24.4]}
30... Qxf2+ {[%clk 0:01:10]} 31. Kh1 {[%clk 0:01:25]} 31... Qxe3 {[%clk
0:01:08.5]} 32. Nxf8 {[%clk 0:01:26.2]} 32... Ng3+ {[%clk 0:01:09.1]} 0-1

[Event "*** Titled Tuesday 3|2 Blitz (Late)"]
[Site "Chess.com"]
[Date "2016.12.06"]
[Round "7"]
[White "chesstatour"]
[Black "Alliswell998"]
[Result "0-1"]
[WhiteElo "1886"]
[BlackElo "2130"]
[TimeControl "180+2"]
[EndTime "18:22:21 PST"]
[Termination "Alliswell998 won by resignation"]

1. c4 {[%clk 0:03:02]} 1... Nf6 {[%clk 0:03:00.8]} 2. Nc3 {[%clk 0:03:03]} 2...
g6 {[%clk 0:03:00.6]} 3. e4 {[%clk 0:03:03]} 3... Bg7 {[%clk 0:03:02.2]} 4. d4
{[%clk 0:03:04.6]} 4... d6 {[%clk 0:03:03.4]} 5. f4 {[%clk 0:03:06.1]} 5... O-O
{[%clk 0:03:04.2]} 6. Nf3 {[%clk 0:03:07.7]} 6... Nc6 {[%clk 0:02:54.6]} 7. d5
{[%clk 0:03:05.3]} 7... Nb8 {[%clk 0:02:53.2]} 8. Bd3 {[%clk 0:03:05.8]} 8...
Nbd7 {[%clk 0:02:54.2]} 9. O-O {[%clk 0:03:05.7]} 9... c5 {[%clk 0:02:53.5]} 10.
e5 {[%clk 0:02:55.7]} 10... dxe5 {[%clk 0:02:53.4]} 11. fxe5 {[%clk 0:02:57.6]}
11... Ng4 {[%clk 0:02:54.1]} 12. e6 {[%clk 0:02:58.9]} 12... fxe6 {[%clk
0:02:50.1]} 13. Ng5 {[%clk 0:02:56.2]} 13... Bd4+ {[%clk 0:02:47.3]} 14. Kh1
{[%clk 0:02:56.7]} 14... Rxf1+ {[%clk 0:02:45.7]} 15. Qxf1 {[%clk 0:02:55.9]}
15... Nf2+ {[%clk 0:02:46.4]} 16. Kg1 {[%clk 0:02:57]} 16... Nxd3+ {[%clk
0:02:47.3]} 17. Kh1 {[%clk 0:02:56]} 17... Nf2+ {[%clk 0:02:47.9]} 18. Kg1
{[%clk 0:02:56.4]} 18... Qf8 {[%clk 0:02:37.1]} 19. Nf3 {[%clk 0:02:48.7]} 19...
exd5 {[%clk 0:02:14.3]} 20. Nxd4 {[%clk 0:02:25.4]} 20... cxd4 {[%clk
0:02:13.9]} 21. Nxd5 {[%clk 0:02:26.6]} 21... Ne4 {[%clk 0:02:01.2]} 22. Qxf8+
{[%clk 0:02:10.3]} 22... Kxf8 {[%clk 0:01:59.4]} 23. Bh6+ {[%clk 0:01:49.5]}
23... Kf7 {[%clk 0:01:59.7]} 24. Rf1+ {[%clk 0:01:33.3]} 24... Ndf6 {[%clk
0:01:59.8]} 25. h3 {[%clk 0:01:24.9]} 25... Be6 {[%clk 0:01:57.3]} 26. g4 {[%clk
0:01:16.7]} 26... Bxd5 {[%clk 0:01:56.1]} 27. cxd5 {[%clk 0:01:16]} 27... Kg8
{[%clk 0:01:48.9]} 28. Re1 {[%clk 0:01:04.6]} 28... d3 {[%clk 0:01:24]} 0-1